fUSD/lending_fUSD_20240726
["ID","MTS","AMOUNT","RATE_DAILY","PERIOD"]
[333272550,1722011440389,-500.0,0.00010958,2]
[333272552,1722011440399,-561.48794232,0.00010958,2]
[333272554,1722011440409,-500.0,0.00010958,2]
[333272556,1722011440420,-500.0,0.00010958,2]
[333272558,1722011440431,-500.0,0.00010958,2]
[333272560,1722011440441,-500.0,0.00010958,2]
[333272562,1722011440453,-342.02,0.00010958,2]
[333272564,1722011440463,-500.0,0.00010958,2]
[333272566,1722011440473,-500.0,0.00010958,2]
[333272568,1722011440483,-500.0,0.00010958,2]
[333272570,1722011440494,-500.0,0.00010958,2]
[333272573,1722011440504,-500.0,0.00010958,2]
[333272575,1722011440514,-500.0,0.00010958,2]
[333272577,1722011440525,-500.0,0.00010958,2]
[333272579,1722011440535,-339.22663719,0.00010958,2]
[333272581,1722011440545,-500.0,0.00010958,2]
[333272583,1722011440562,-270.28100598,0.00010958,2]
[333272585,1722011440572,-500.0,0.00010958,2]
[333272587,1722011440583,-412.43669565,0.00010958,2]
[333272589,1722011440592,-500.0,0.00010958,2]
[333272591,1722011440603,-500.0,0.00010958,2]
[333272593,1722011440613,-500.0,0.00010958,2]
[333272595,1722011440624,-500.0,0.00010958,2]
[333272598,1722011440635,-500.0,0.00010958,2]
[333272600,1722011440647,-500.0,0.00010958,2]
[333272602,1722011440657,-500.0,0.00010958,2]
[333272603,1722011440667,-500.0,0.00010958,2]
[333272605,1722011440676,-500.0,0.00010958,2]
[333272608,1722011440686,-500.0,0.00010958,2]
[333272643,1722011441050,-500.0,0.00010958,2]
[333272646,1722011441076,-500.0,0.00010958,2]
[333272648,1722011441090,-500.0,0.00010958,2]
[333272650,1722011441100,-500.0,0.00010958,2]
[333272652,1722011441109,-500.0,0.00010958,2]
[333272654,1722011441118,-500.0,0.00010958,2]
[333272656,1722011441128,-500.0,0.00010958,2]
[333272658,1722011441138,-500.0,0.00010958,2]
[333272660,1722011441147,-500.0,0.00010958,2]
[333272662,1722011441156,-500.0,0.00010958,2]
[333272664,1722011441167,-500.0,0.00010958,2]
[333272666,1722011441177,-500.0,0.00010958,2]
[333272668,1722011441187,-513.98811458,0.00010958,2]
[333272670,1722011441197,-413.74631541,0.00010958,2]
[333272672,1722011441208,-532.22740036,0.00010958,2]
[333272674,1722011441217,-500.0,0.00010958,2]
[333272677,1722011441227,-500.0,0.00010958,2]
[333272678,1722011441237,-525.60775662,0.00010958,2]
[333272681,1722011441247,-510.17398448,0.00010958,2]
[333272683,1722011441257,-500.0,0.00010958,2]
[333272685,1722011441267,-500.0,0.00010958,2]
[333272687,1722011441277,-523.80999908,0.00010958,2]
[333272689,1722011441286,-533.17699307,0.00010958,2]
[333272690,1722011441296,-536.26019725,0.00010958,2]
[333272691,1722011441310,-500.0,0.00010958,2]
[333272692,1722011441322,-150.0,0.00010959,2]
[333272693,1722011441331,-167.56,0.00010959,2]
[333272694,1722011441341,-175.69,0.00010985,2]
[333272695,1722011441350,-175.69,0.00010985,2]
[333272696,1722011441359,-175.69,0.00010985,2]
[333272697,1722011441369,-150.0,0.00010986,2]
[333272698,1722011441378,-175.69,0.00010988,2]
[333272699,1722011441387,-175.69,0.00010988,2]
[333272700,1722011441397,-175.69,0.00010988,2]
[333272701,1722011441406,-175.69,0.00010988,2]
[333272702,1722011441416,-5190.37854984,0.00010995,2]
[333272703,1722011441426,-3000.0,0.00010995,2]
[333272704,1722011441435,-226.49333722,0.00010998,2]
[333272705,1722011441476,-273.50666278,0.00010998,2]
[333272706,1722011441485,-405.26794868,0.00010998,2]
[333272707,1722011441494,-52.72429633,0.00010998,2]
[333272708,1722011441506,-496.42027323,0.00010998,2]
[333272709,1722011441516,-592.67,0.00010998,2]
[333272710,1722011441526,-500.0,0.00010998,2]
[333272711,1722011441535,-162.31029333,0.00010998,2]
[333272712,1722011441544,-230.78097534,0.00010998,2]
[333272713,1722011441553,-250.9,0.00010998,2]
[333272714,1722011441569,-506.43,0.00010998,2]
[333272715,1722011441579,-500.0,0.00010998,2]
[333272716,1722011441588,-551.0,0.00010998,2]
[333272717,1722011441597,-500.0,0.00010998,2]
[333272718,1722011441607,-408.35667823,0.00010998,2]
[333272719,1722011441616,-500.0,0.00010998,2]
[333272720,1722011441625,-500.0,0.00010998,2]
[333272721,1722011441635,-500.0,0.00010998,2]
[333272722,1722011441644,-500.0,0.00010998,2]
[333272723,1722011441654,-350.5449374,0.00010998,2]
[333272724,1722011441663,-578.12987855,0.00010998,2]
[333272725,1722011441675,-33.28554955,0.00010998,2]
[333272726,1722011441685,-202.38406215,0.00010998,2]
[333272727,1722011441694,-500.0,0.00010998,2]
[333272728,1722011441704,-409.3889264,0.00010998,2]
[333272729,1722011441713,-460.59,0.00010998,2]
[333272730,1722011441722,-500.0,0.00010998,2]
[333272731,1722011441731,-500.0,0.00010998,2]
[333272732,1722011441741,-567.67,0.00010998,2]
[333272733,1722011441750,-500.0,0.00010998,2]
[333272734,1722011441759,-500.0,0.00010998,2]
[333272735,1722011441769,-500.0,0.00010998,2]
[333272736,1722011441778,-500.0,0.00010998,2]
[333272737,1722011441787,-472.38472387,0.00010998,2]
[333272738,1722011441796,-500.0,0.00010998,2]
[333272739,1722011441807,-49.5976656,0.00010998,2]
[333272740,1722011441823,-450.4023344,0.00010998,2]
[333272741,1722011441832,-500.0,0.00010998,2]
[333272742,1722011441841,-221.46831702,0.00010998,2]
[333272743,1722011441850,-365.55975108,0.00010998,2]
[333272744,1722011441859,-500.0,0.00010998,2]
[333272745,1722011441869,-204.98,0.00010998,2]
[333272746,1722011441881,-548.02435579,0.00010998,2]
[333272747,1722011441890,-500.0,0.00010998,2]
[333272748,1722011441899,-500.0,0.00010998,2]
[333272749,1722011441909,-617.63920327,0.00010998,2]
[333272750,1722011441919,-70.37228926,0.00010998,2]
[333272751,1722011441930,-429.62771074,0.00010998,2]
[333272752,1722011441940,-500.0,0.00010998,2]
[333272753,1722011441951,-514.37505941,0.00010998,2]
[333272754,1722011441961,-534.93394803,0.00010998,2]
[333272755,1722011441970,-686.87,0.00010998,2]
[333272756,1722011441979,-1155.93,0.00010998,2]
[333272757,1722011441988,-500.0,0.00010998,2]
[333272758,1722011441999,-500.0,0.00010998,2]
[333272759,1722011442008,-513.95042908,0.00010998,2]
[333272760,1722011442020,-575.67059618,0.00010999,2]
[333272761,1722011442031,-512.66281603,0.00010999,2]
[333272762,1722011442040,-508.62631956,0.00010999,2]
[333272763,1722011442050,-500.0,0.00010999,2]
[333272764,1722011442067,-509.54067912,0.00010999,2]
[333272765,1722011442076,-500.0,0.00010999,2]
[333272767,1722011442085,-480.67763639,0.00010999,2]
[333272769,1722011442094,-578.38244689,0.00010999,2]
[333272770,1722011442103,-512.90306631,0.00010999,2]
[333272771,1722011442112,-606.90872434,0.00010999,2]
[333272772,1722011442121,-4.5342247,0.00010999,2]
[333272773,1722011442140,-495.4657753,0.00010999,2]
[333272775,1722011442149,-500.0,0.00010999,2]
[333272777,1722011442158,-219.33240831,0.00010999,2]
[333272779,1722011442169,-798.11759169,0.00010999,2]
[333272782,1722011442180,-157.39505539,0.00010999,2]
[333272817,1722011442521,-860.05494461,0.00010999,2]
[333272818,1722011442531,-1017.45,0.00010999,2]
[333272820,1722011442541,-1017.45,0.00010999,2]
[333272822,1722011442550,-1017.45,0.00010999,2]
[333272824,1722011442569,-1017.45,0.00010999,2]
[333272826,1722011442578,-1017.45,0.00010999,2]
[333272828,1722011442587,-1017.45,0.00010999,2]
[333272830,1722011442596,-1017.45,0.00010999,2]
[333272832,1722011442606,-1017.45,0.00010999,2]
[333272834,1722011442615,-1017.45,0.00010999,2]
[333272836,1722011442625,-1017.45,0.00010999,2]
[333272838,1722011442635,-1017.45,0.00010999,2]
[333272840,1722011442645,-1017.45,0.00010999,2]
[333272842,1722011442654,-1017.45,0.00010999,2]
[333272844,1722011442664,-1017.45,0.00010999,2]
[333272846,1722011442673,-1017.45,0.00010999,2]
[333272848,1722011442683,-1017.45,0.00010999,2]
[333272850,1722011442693,-682.46105539,0.00010999,2]
[333272855,1722011442730,-334.98894461,0.00010999,2]
[333272858,1722011442741,-5.75105539,0.00010999,2]
[333272861,1722011442752,-335.545,0.00010999,2]
[333272902,1722011443087,-1488.252,0.000105,2]
[333272904,1722011443098,-676.15394461,0.00010999,2]
[333272906,1722011443108,-1017.45,0.00010999,2]
[333272909,1722011443118,-1017.45,0.00010999,2]
[333272911,1722011443128,-1017.45,0.00010999,2]
[333272912,1722011443137,-1017.65,0.00010999,2]
[333272915,1722011443146,-500.0,0.00010999,2]
[333272917,1722011443156,-500.0,0.00010999,2]
[333272919,1722011443165,-500.0,0.00010999,2]
[333272921,1722011443175,-500.0,0.00010999,2]
[333272923,1722011443186,-500.0,0.00010999,2]
[333272925,1722011443195,-500.0,0.00010999,2]
[333272927,1722011443205,-500.0,0.00010999,2]
[333272929,1722011443214,-530.85338072,0.00010999,2]
[333272931,1722011443224,-516.37680866,0.00010999,2]
[333272933,1722011443233,-513.47300397,0.00010999,2]
[333272934,1722011443243,-516.57607382,0.00010999,2]
[333272937,1722011443253,-500.0,0.00010999,2]
[333272938,1722011443262,-516.6636036,0.00010999,2]
[333272941,1722011443273,-648.03291814,0.00010999,2]
[333272943,1722011443282,-500.0,0.00010999,2]
[333272945,1722011443292,-365.82,0.00010999,2]
[333272946,1722011443302,-521.2016103,0.00010999,2]
[333272949,1722011443320,-517.38244778,0.00010999,2]
[333272951,1722011443330,-505.31846384,0.00010999,2]
[333272953,1722011443340,-500.0,0.00010999,2]
[333272955,1722011443350,-513.99299032,0.00010999,2]
[333272957,1722011443359,-320.40163323,0.00010999,2]
[333272963,1722011443406,-179.59836677,0.00010999,2]
[333272965,1722011443416,-155.76196646,0.00010999,2]
[333272967,1722011443427,-500.0,0.00010999,2]
[333272969,1722011443437,-500.0,0.00010999,2]
[333272971,1722011443448,-500.0,0.00010999,2]
[333272973,1722011443457,-443.99596614,0.00010999,2]
[333272975,1722011443467,-220.26750063,0.00010999,2]
[333273021,1722011446098,-279.73249937,0.00010999,2]
[333273022,1722011446108,-500.0,0.00010999,2]
[333273023,1722011446118,-500.0,0.00010999,2]
[333273024,1722011446127,-500.0,0.00010999,2]
[333273025,1722011446137,-500.0,0.00010999,2]
[333273026,1722011446146,-500.0,0.00010999,2]
[333273027,1722011446155,-500.0,0.00010999,2]
[333273028,1722011446165,-182.58124096,0.00010999,2]
[333273029,1722011446174,-520.43735219,0.00010999,2]
[333273030,1722011446183,-592.89,0.00010999,2]
[333273031,1722011446193,-533.30883379,0.00010999,2]
[333273032,1722011446202,-513.11337277,0.00010999,2]
[333273033,1722011446212,-502.47196635,0.00010999,2]
[333273034,1722011446222,-500.0,0.00010999,2]
[333273035,1722011446231,-508.84810583,0.00010999,2]
[333273036,1722011446240,-579.57762696,0.00010999,2]
[333273037,1722011446250,-516.4973246,0.00010999,2]
[333273038,1722011446260,-518.49667739,0.00010999,2]
[333273039,1722011446269,-521.10337244,0.00010999,2]
[333273040,1722011446279,-500.0,0.00010999,2]
[333273041,1722011446288,-500.0,0.00010999,2]
[333273042,1722011446298,-500.0,0.00010999,2]
[333273043,1722011446309,-505.64064496,0.00010999,2]
[333273044,1722011446323,-500.0,0.00010999,2]
[333273045,1722011446333,-500.85296894,0.00010999,2]
[333273046,1722011446343,-508.48908352,0.00010999,2]
[333273047,1722011446352,-317.36472586,0.00010999,2]
[333273048,1722011446362,-511.0959029,0.00010999,2]
[333273049,1722011446371,-508.54,0.00010999,2]
[333273050,1722011446381,-617.94,0.00010999,2]
[333273051,1722011446390,-500.0,0.00010999,2]
[333273052,1722011446399,-407.63846966,0.00010999,2]
[333273053,1722011446409,-510.22540964,0.00010999,2]
[333273054,1722011446419,-171803.68197767,0.00010999,3]
[333273055,1722011446428,-500.0,0.00010999,2]
[333273056,1722011446438,-504.81410534,0.00010999,2]
[333273057,1722011446448,-500.0,0.00010999,2]
[333273058,1722011446457,-500.0,0.00010999,2]
[333273059,1722011446467,-500.0,0.00010999,2]
[333273060,1722011446478,-500.0,0.00010999,2]
[333273061,1722011446488,-500.0,0.00010999,2]
[333273062,1722011446498,-500.0,0.00010999,2]
[333273063,1722011446508,-500.0,0.00010999,2]
[333273064,1722011446518,-502.76832492,0.00010999,2]
[333273065,1722011446528,-530.60668383,0.00010999,2]
[333273066,1722011446537,-500.0,0.00010999,2]
[333273067,1722011446547,-500.0,0.00010999,2]
[333273068,1722011446563,-500.0,0.00010999,2]
[333273069,1722011446574,-372.91213401,0.00010999,2]
[333273070,1722011446584,-182.86787779,0.00010999,2]
[333273071,1722011446593,-1590.22240522,0.00010999,3]
[333273072,1722011446604,-500.0,0.00010999,2]
[333273074,1722011446614,-315.98313643,0.00010999,2]
[333273076,1722011446624,-631.17447279,0.00010999,2]
[333273077,1722011446634,-500.0,0.00010999,2]
[333273078,1722011446644,-208.64802261,0.00010999,2]
[333273079,1722011446654,-360.26983267,0.00010999,2]
[333273080,1722011446663,-500.0,0.00010999,2]
[333273081,1722011446835,-500.0,0.00010999,2]
[333273082,1722011446845,-500.0,0.00010999,2]
[333273083,1722011446855,-500.0,0.00010999,2]
[333273084,1722011446865,-500.0,0.00010999,2]
[333273085,1722011446877,-396.94707262,0.00010999,2]
[333273086,1722011446887,-500.0,0.00010999,2]
[333273087,1722011446897,-500.0,0.00010999,2]
[333273088,1722011446907,-500.0,0.00010999,2]
[333273089,1722011446918,-500.0,0.00010999,2]
[333273090,1722011446928,-176.94067105,0.00010999,2]
[333273091,1722011446938,-500.0,0.00010999,2]
[333273092,1722011446948,-426.98,0.00010999,2]
[333273093,1722011446959,-379.47,0.00010999,2]
[333273094,1722011446970,-347.61458807,0.00010999,2]
[333273095,1722011446980,-500.0,0.00010999,2]
[333273096,1722011446989,-500.0,0.00010999,2]
[333273097,1722011446999,-500.0,0.00010999,2]
[333273098,1722011447008,-492.89,0.00010999,2]
[333273099,1722011447018,-500.0,0.00010999,2]
[333273100,1722011447028,-500.0,0.00010999,2]
[333273101,1722011447037,-209.15,0.00010999,2]
[333273102,1722011447048,-617.84,0.00010999,2]
[333273103,1722011447058,-500.0,0.00010999,2]
[333273104,1722011447075,-563.28883225,0.00010999,2]
[333273105,1722011447084,-518.64,0.00010999,2]
[333273106,1722011447094,-686.53,0.00010999,2]
[333273107,1722011447103,-686.87,0.00010999,2]
[333273108,1722011447113,-686.87,0.00010999,2]
[333273109,1722011447123,-686.87,0.00010999,2]
[333273110,1722011447134,-686.87,0.00010999,2]
[333273111,1722011447144,-686.87,0.00010999,2]
[333273112,1722011447154,-686.87,0.00010999,2]
[333273113,1722011447164,-686.87,0.00010999,2]
[333273114,1722011447174,-686.87,0.00010999,2]
[333273115,1722011447184,-686.87,0.00010999,2]
[333273116,1722011447193,-686.87,0.00010999,2]
[333273117,1722011447203,-686.87,0.00010999,2]
[333273118,1722011447212,-686.87,0.00010999,2]
[333273119,1722011447222,-686.87,0.00010999,2]
[333273120,1722011447231,-686.87,0.00010999,2]
[333273121,1722011447241,-686.87,0.00010999,2]
[333273122,1722011447251,-686.87,0.00010999,2]
[333273123,1722011447262,-686.87,0.00010999,2]
[333273124,1722011447271,-686.87,0.00010999,2]
[333273125,1722011447281,-686.87,0.00010999,2]
[333273126,1722011447291,-686.87,0.00010999,2]
[333273127,1722011447300,-686.87,0.00010999,2]
[333273128,1722011447310,-686.87,0.00010999,2]
[333273129,1722011447323,-686.93338469,0.00010999,2]
[333273130,1722011447333,-500.0,0.00010999,2]
[333273131,1722011447344,-500.0,0.00010999,2]
[333273132,1722011447353,-500.0,0.00010999,2]
[333273133,1722011447362,-518.70378101,0.00010999,2]
[333273134,1722011447372,-159.997,0.00011,2]
[333273135,1722011447383,-180.655,0.00011,2]
[333273136,1722011447392,-362.614,0.00011,2]
[333273137,1722011447402,-154500.00319249,0.00011,2]
[333273138,1722011447411,-316214.60944727,0.00011,2]
[333273139,1722011448058,-26294.26579739,0.00011,2]
[333273142,1722011592281,2207.08092049,8e-05,4]
[333273144,1722011924666,2207.08092049,8e-05,4]
[333273146,1722012124459,1000.0,0.000182,120]
[333273147,1722012336072,2207.08092049,8e-05,4]
[333273168,1722012632319,-451.92492773,8e-05,2]
[333273169,1722012632578,-346.23904119,8e-05,2]
[333273170,1722012632588,-155.0,8e-05,2]
[333273171,1722012632597,-8565.01266291,8e-05,2]
[333273172,1722012632607,-775.58,8.219e-05,2]
[333273173,1722012632617,-760.62,9.608e-05,2]
[333273174,1722012632627,-23890.0,9.609e-05,2]
[333273175,1722012632637,-5608.0,9.751e-05,2]
[333273176,1722012632646,-8086.1433,9.846e-05,2]
[333273177,1722012632655,-640.0,9.861e-05,2]
[333273178,1722012632665,-150.0,9.888e-05,2]
[333273179,1722012632675,-150.0,9.945e-05,2]
[333273180,1722012632685,-168.41,9.967e-05,2]
[333273181,1722012632694,-499.99,9.967e-05,2]
[333273182,1722012632704,-1250.0,0.0001,2]
[333273183,1722012632714,-360.0,0.00010084,2]
[333273184,1722012632723,-355.9,0.00010178,2]
[333273185,1722012632732,-150.0,0.00010178,2]
[333273186,1722012632742,-355.63,0.00010278,2]
[333273187,1722012632751,-775.58,0.00010471,2]
[333273188,1722012632761,-299.99,0.00010476,2]
[333273189,1722012632772,-1000.0,0.00010758,2]
[333273190,1722012632782,-10023.6389,0.00010799,2]
[333273192,1722012632791,-1284.8586,0.00010799,2]
[333273193,1722012632801,-2418.0797,0.000108,2]
[333273194,1722012632811,-61562.7547,0.000108,2]
[333273195,1722012632820,-6331.7544,0.000108,2]
[333273196,1722012632830,-587.41617166,0.00010811,2]
[333273197,1722012632839,-587.41617165,0.00010833,2]
[333273198,1722012632848,-587.41617165,0.00010856,2]
[333273199,1722012632858,-1000.0,0.00010858,2]
[333273200,1722012632868,-39063.7926,0.00010858,2]
[333273201,1722012632877,-45876.1299,0.00010858,2]
[333273202,1722012632886,-220.84,0.00010877,3]
[333273203,1722012632896,-587.41617165,0.00010878,2]
[333273204,1722012632905,-6864.42810118,0.0001089,2]
[333273205,1722012632914,-184.1543007,0.0001089,2]
[333273206,1722012632923,-209.3391089,0.0001089,2]
[333273207,1722012632932,-1611.42412487,0.0001089,2]
[333273208,1722012632941,-209.33910888,0.00010893,2]
[333273209,1722012632950,-209.33910888,0.00010895,2]
[333273210,1722012632959,-209.33910888,0.00010898,2]
[333273211,1722012632968,-4705.7756,0.00010898,2]
[333273212,1722012632977,-3028.0524,0.00010898,2]
[333273213,1722012632987,-5000.0,0.000109,2]
[333273214,1722012632996,-2324.21109593,0.000109,2]
[333273215,1722012633005,-4364.142956,0.000109,2]
[333273216,1722012633015,-875.46856231,0.000109,2]
[333273217,1722012633024,-1000.0,0.000109,2]
[333273218,1722012633035,-500.0,0.000109,2]
[333273219,1722012633045,-100000.0,0.000109,2]
[333273220,1722012633055,-3520.9278,0.000109,2]
[333273221,1722012633064,-184.1543007,0.000109,2]
[333273222,1722012633074,-152.12128491,0.000109,2]
[333273223,1722012633084,-152.1212849,0.000109,2]
[333273224,1722012633093,-152.1212849,0.000109,2]
[333273225,1722012633103,-209.33910888,0.000109,2]
[333273226,1722012633113,-587.41617165,0.000109,2]
[333273227,1722012633124,-180.19668508,0.000109,2]
[333273228,1722012633133,-183.64362293,0.000109,2]
[333273229,1722012633143,-611.2876396,0.000109,2]
[333273230,1722012633153,-500.0,0.00010911,2]
[333273231,1722012633162,-500.0,0.00010912,2]
[333273232,1722012633173,-911.33,0.00010932,2]
[333273233,1722012633182,-200.11792725,0.00010945,2]
[333273234,1722012633192,-212.30501151,0.00010958,2]
[333273235,1722012633202,-500.0,0.00010958,2]
[333273236,1722012633212,-500.0,0.00010958,2]
[333273237,1722012633222,-314.42,0.00010959,2]
[333273238,1722012633231,-262.02,0.00010959,2]
[333273239,1722012633241,-218.35,0.00010959,2]
[333273240,1722012633253,-181.96,0.00010959,2]
[333273241,1722012633264,-151.63,0.00010959,2]
[333273242,1722012633274,-758.19,0.00010959,2]
[333273243,1722012633284,-250.0,0.00010959,2]
[333273244,1722012633294,-178.93,0.0001098,2]
[333273245,1722012633304,-2290.72474394,0.00010987,2]
[333273246,1722012633315,-500.0,0.00010989,2]
[333273247,1722012633324,-500.0,0.00010989,2]
[333273248,1722012633335,-500.0,0.00010989,2]
[333273249,1722012633345,-435.6,0.00010989,2]
[333273250,1722012633355,-489910.05123359,0.0001099,5]
[333273251,1722012633368,-462.53216332,0.0001099,5]
[333273252,1722012633939,-289.46000608,0.0001099,5]
[333273261,1722012638119,-950.25580011,0.0001099,5]
[333273262,1722012638131,-3261.8,0.0001099,5]
[333273263,1722012638175,-281.20177825,0.0001099,5]
[333273264,1722012638187,-8173.52989368,0.0001099,5]
[333273265,1722012638198,-2606.31547647,0.0001099,5]
[333273266,1722012638396,-1604.62300768,0.0001099,5]
[333273267,1722012638408,-1423.16486127,0.0001099,5]
[333274184,1722012660858,2207.08092049,8e-05,4]
[333274185,1722012803437,-300.0,7.999e-05,2]
[333274186,1722012803459,-300.0,7.999e-05,2]
[333274187,1722012803481,-9400.0,8e-05,2]
[333274188,1722012804288,-10000.0,8e-05,2]
[333274189,1722012804669,-2190.67615651,8e-05,2]
[333274190,1722012804691,-155.0,8e-05,2]
[333274191,1722012804713,-155.0,8e-05,2]
[333274192,1722012804736,-420.0,8.799e-05,2]
[333274193,1722012804757,-420.0,8.799e-05,2]
[333274194,1722012804779,-587.0,9.679e-05,2]
[333274195,1722012804800,-6072.32384349,9.697e-05,2]
[333274196,1722012805113,-10000.0,9.697e-05,2]
[333274197,1722012805498,-3890.85643696,9.697e-05,2]
[333274198,1722012805521,-1941.19243025,9.697e-05,2]
[333274199,1722012805569,155.0,8e-05,2]
[333274200,1722012816520,1818.67469748,9.697e-05,2]
[333274201,1722012842237,155.0,9.697e-05,2]
[333274202,1722012873088,155.0,9.697e-05,2]
[333274203,1722012880497,766.14,8.219e-05,2]
[333274204,1722012880584,194.46573069,9.697e-05,2]
[333274205,1722012888658,923.67070462,9.697e-05,2]
[333274206,1722012888682,10000.0,9.697e-05,2]
[333274207,1722012888706,10000.0,9.697e-05,2]
[333274208,1722012888729,10000.0,9.697e-05,2]
[333274209,1722012888752,10000.0,9.697e-05,2]
[333274210,1722012888774,10000.0,9.697e-05,2]
[333274211,1722012888797,10000.0,9.697e-05,2]
[333274212,1722012888819,10000.0,9.697e-05,2]
[333274213,1722012888842,10000.0,9.697e-05,2]
[333274214,1722012888865,10000.0,9.697e-05,2]
[333274215,1722012888887,10000.0,9.697e-05,2]
[333274216,1722012985682,-151.0,0.00020469,120]
[333274218,1722013133687,151.0,0.00020469,120]
[333274220,1722013138802,2207.08092049,0.00015,30]
[333274222,1722013211863,1171.67631804,8e-05,4]
[333274230,1722013677534,151.0,0.00020469,120]
[333274236,1722013832830,-290.05974808,8e-05,2]
[333274237,1722013832839,-2290.0,8.219e-05,2]
[333274238,1722013832850,-727.83,8.219e-05,2]
[333274239,1722013832859,-662.2,9.636e-05,2]
[333274240,1722013832869,-248.35,9.662e-05,2]
[333274241,1722013832878,-21492.38742369,9.707e-05,2]
[333274242,1722013832973,-325.73257631,9.707e-05,2]
[333274243,1722013832983,-427.19,9.741e-05,2]
[333274244,1722013832993,-512.0,9.901e-05,2]
[333274245,1722013833003,-777.43,9.927e-05,2]
[333274246,1722013833012,-171.97,9.976e-05,2]
[333274247,1722013833022,-2000.0,9.976e-05,2]
[333274248,1722013833031,-181.56999601,0.0001,2]
[333274249,1722013833041,-1250.0,0.0001,2]
[333274250,1722013833051,-348.08208368,0.00010139,2]
[333274251,1722013833377,-139.91791632,0.00010139,2]
[333274252,1722013833387,-153.0,0.0001024,2]
[333274253,1722013833397,-316.9455303,0.00010241,2]
[333274254,1722013833421,-348.9147864,0.00010241,2]
[333274255,1722013833433,-167.0296833,0.00010241,2]
[333274256,1722013833443,-420.27,0.00010241,2]
[333274257,1722013833453,-420.27,0.00010241,2]
[333274258,1722013833463,-420.27,0.00010241,2]
[333274259,1722013833473,-420.27,0.00010241,2]
[333274260,1722013833484,-300.66,0.00010241,2]
[333274261,1722013833494,-933.26648795,0.00010242,2]
[333274262,1722013833510,-1161.29821248,0.00010242,2]
[333274263,1722013833520,-499.99,0.00010242,2]
[333274264,1722013833529,-88.71178752,0.0001047,2]
[333274272,1722013838408,-639.11821248,0.0001047,2]
[333274273,1722013838418,-5088.04492584,0.00010658,2]
[333274274,1722013838521,-1270.69192136,0.00010658,2]
[333274275,1722013838584,-2123.93814826,0.00010658,2]
[333274276,1722013838598,-1083.43000002,0.00010658,2]
[333274277,1722013838648,-1273.04144729,0.00010658,2]
[333274278,1722013838706,-500.54133244,0.00010658,2]
[333274279,1722013838818,-282.48007,0.00010658,2]
[333274494,1722013840550,-1667.04018567,0.00010658,2]
[333274496,1722013840562,-588.29543004,0.00010658,2]
[333274507,1722013840667,-64490.36943908,0.00010658,2]
[333274509,1722013840676,-709.2503867,0.0001067,2]
[333274511,1722013840685,-709.2503867,0.0001067,2]
[333274513,1722013840695,-9722.4317,0.00010758,2]
[333274515,1722013840704,-245000.0,0.00010758,2]
[333274517,1722013840713,-10258.99951806,0.00010758,2]
[333274519,1722013840725,-89741.00048194,0.00010758,2]
[333274521,1722013840734,-25600.0,0.00010771,2]
[333274523,1722013840743,-8480.7282635,0.00010807,2]
[333274525,1722013840752,-3000.0,0.0001088,2]
[333274527,1722013840762,-15812.6193,0.0001089,2]
[333274529,1722013840771,-1000.0,0.00010899,2]
[333274531,1722013840780,-1704.0,0.000109,2]
[333274533,1722013840790,-178.94,0.000109,2]
[333274535,1722013840799,-500.0,0.00010911,2]
[333274537,1722013840810,-500.0,0.00010912,2]
[333274539,1722013840819,-384.64387787,0.00010958,2]
[333274541,1722013840828,-414.80776305,0.00010958,2]